bitfinex/quotes_SOLUSD_20240605
["timestamp","ask_amount","ask_price","bid_price","bid_amount"]
[1717598394384,0.34,172.71,172.67,2.1427]
[1717598394586,0.17,172.71,172.68,2.1426]
[1717598394786,2.1422,172.72,172.68,2.1426]
[1717598395186,26.806,172.74,172.69,2.1424]
[1717598395381,28.948,172.74,172.69,2.1425]
[1717598395686,22.542,172.74,172.7,2.1424]
[1717598395887,0.4,172.74,172.7,2.1424]
[1717598396104,2.1421,172.73,172.69,2.1424]
[1717598396296,2.1421,172.73,172.67,4.2855]
[1717598396500,2.1422,172.72,172.68,2.1425]
[1717598396790,2.1421,172.73,172.69,2.1425]
[1717598397095,2.1421,172.73,172.68,2.1426]
[1717598397296,2.1421,172.72,172.68,2.1426]
[1717598397495,2.1421,172.73,172.68,2.1426]
[1717598397998,2.1421,172.72,172.68,2.1426]
[1717598398404,2.1421,172.73,172.68,2.1426]
[1717598398713,2.1422,172.72,172.68,2.1426]
[1717598400199,2.1422,172.72,172.67,2.1427]
[1717598400394,2.1423,172.71,172.67,2.1427]
[1717598400604,9.1698606,172.72,172.68,2.1426]
[1717598400914,8.2371,172.72,172.67,2.1427]
[1717598401121,2.1423,172.71,172.67,2.1427]
[1717598401305,3.0750606,172.71,172.67,2.1427]
[1717598401502,0.9327606,172.7,172.67,2.1427]
[1717598401695,8.2371,172.72,172.68,2.1426]
[1717598402018,2.1421,172.73,172.69,2.1425]
[1717598402189,0.4,172.74,172.57,56.2754]
[1717598402397,3.4747606,172.74,172.6,20.34]
[1717598402712,3.4747606,172.74,172.7,2.1424]
[1717598402906,1.3327606,172.74,172.67,10.7139]
[1717598403098,1.3327606,172.74,172.69,2.1425]
[1717598403296,3.4747606,172.74,172.7,2.1424]
[1717598403699,2.142,172.73,172.69,2.1425]
[1717598404014,2.142,172.73,172.6,20.34]
[1717598404015,0.9327606,172.72,172.65,4.286]
[1717598404207,2.1423,172.71,172.67,2.1427]
[1717598404414,0.9327606,172.7,172.67,2.1427]
[1717598405619,9.5426606,172.71,172.67,2.1427]
[1717598405817,23.7859,172.71,172.67,2.1427]
[1717598406027,0.34,172.7,172.61,4.287]
[1717598406194,0.4,172.74,172.58,5.795]
[1717598406394,0.4,172.74,172.72,2.1421]
[1717598406602,0.4,172.74,172.59,21.27029839]
[1717598406901,0.4,172.74,172.64,4.2862]
[1717598407219,0.4,172.74,172.69,2.1424]
[1717598407417,0.4,172.74,172.64,4.2862]
[1717598407719,0.4,172.74,172.72,2.1421]
[1717598408291,0.4,172.74,172.72,8.5034]
[1717598408525,0.4,172.74,172.72,2.1421]
[1717598412224,0.4,172.74,172.73,2.142]
[1717598414741,0.4,172.74,172.73,8.2523]
[1717598415130,0.4,172.84,172.73,6.1122]
[1717598415337,0.4,172.84,172.83,2.1408]
[1717598415536,0.4,172.84,172.82,2.1409]
[1717598417052,0.4,172.84,172.83,2.1408]
[1717598417746,0.4,172.84,172.83,12.969]
[1717598418842,0.4,172.84,172.83,19.3914]
[1717598419045,0.4,172.84,172.83,12.8448]
[1717598419222,0.4,172.84,172.83,19.3935]
[1717598420441,0.4,172.84,172.83,49.3935]
[1717598421747,0.4,172.84,172.83,39.7335]
[1717598422131,0.4,172.84,172.83,12.8448]
[1717598422638,0.4,172.84,172.83,35.4811]
[1717598422842,0.8182946,172.89,172.88,2.1402]
[1717598423345,0.8182946,172.89,172.88,6.4206]
[1717598423639,0.8182946,172.89,172.88,12.8412]
[1717598423834,0.8182946,172.89,172.88,6.4206]
[1717598424943,0.8182946,172.89,172.88,2.1402]
[1717598427426,0.8182946,172.89,172.88,6.4206]
[1717598430363,0.8182946,172.89,172.8,6.3555]
[1717598430545,23.1140946,172.89,172.87,2.1402]
[1717598431258,0.8182946,172.89,172.84,4.2812]
[1717598431428,0.8182946,172.89,172.88,2.1402]
[1717598431624,0.8182946,172.89,172.86,4.2809]
[1717598431829,0.8182946,172.89,172.88,2.1402]
[1717598432251,17.6008946,172.89,172.87,2.1403]
[1717598432430,17.6008946,172.89,172.77,382.2]
[1717598432431,6.1832,172.88,172.85,2.1405]
[1717598432633,6.1832,172.88,172.84,49.2813]
[1717598432861,6.1832,172.88,172.86,2.1403]
[1717598433156,17.2608946,172.89,172.84,55.7034]
[1717598433328,17.2608946,172.89,172.87,2.1402]
[1717598434441,0.8182946,172.89,172.88,2.1402]
[1717598434855,0.8182946,172.89,172.87,45.0]
[1717598435037,0.8182946,172.89,172.86,45.0]
[1717598435557,0.8182946,172.89,172.87,2.1402]
[1717598435932,0.8182946,172.89,172.88,2.1402]
[1717598436138,0.8182946,172.89,172.88,47.1402]
[1717598437646,0.8182946,172.89,172.88,57.8412]
[1717598440561,0.8182946,172.89,172.88,2.1402]
[1717598440766,0.8182946,172.89,172.88,6.4206]
[1717598441268,0.8182946,172.89,172.76,6.1761]
[1717598441269,7.3059946,172.89,172.76,6.1761]
[1717598441440,15.5658,172.88,172.82,2.1409]
[1717598441639,6.4741,172.86,172.83,2.1408]
[1717598441843,6.4741,172.86,172.84,2.1407]
[1717598442362,6.4741,172.86,172.82,2.1408]
[1717598442575,6.4741,172.86,172.81,10.7052]
[1717598442741,6.4741,172.86,172.84,2.1406]
[1717598443542,6.4741,172.86,172.85,2.1405]
[1717598443760,15.8325,172.87,172.85,2.1405]
[1717598444152,0.34,172.88,172.85,2.1405]
[1717598444348,0.8182946,172.89,172.85,2.1405]
[1717598444555,0.8182946,172.89,172.87,2.1402]
[1717598444759,0.8182946,172.89,172.86,2.1404]
[1717598444960,6.2535,172.88,172.84,45.0]
[1717598446257,6.2535,172.88,172.85,2.1405]
[1717598446851,0.8182946,172.89,172.84,45.0]
[1717598447070,0.8182946,172.89,172.86,2.1404]
[1717598447374,0.8182946,172.89,172.87,2.1403]
[1717598447549,0.8182946,172.89,172.86,2.1403]
[1717598448150,0.8182946,172.89,172.87,2.1403]
[1717598448765,6.6663,172.88,172.85,2.1405]
[1717598449076,6.6663,172.88,172.86,2.1404]
[1717598449264,0.8182946,172.89,172.84,45.0]
[1717598449459,0.8182946,172.89,172.87,2.1402]
[1717598450176,0.8182946,172.89,172.88,2.1402]
[1717598451464,0.8182946,172.89,172.88,47.1402]
[1717598451665,0.8182946,172.89,172.88,51.4206]
[1717598454284,0.8182946,172.89,172.88,47.1402]
[1717598455855,0.8182946,172.89,172.88,2.1402]
[1717598456057,0.8182946,172.89,172.79,6.5302]
[1717598456260,0.8182946,172.89,172.83,4.2815]
[1717598456603,0.8182946,172.89,172.86,2.1404]
[1717598456604,6.9740946,172.89,172.86,2.1404]
[1717598456771,0.17,172.88,172.83,4.2815]
[1717598457078,6.9740946,172.89,172.86,2.1404]
[1717598458881,0.8182946,172.89,172.85,2.1404]
[1717598459187,0.8182946,172.89,172.83,4.2816]
[1717598459188,0.8182946,172.89,172.86,2.1404]
[1717598460196,0.8182946,172.89,172.87,2.1403]
[1717598460397,0.8182946,172.89,172.88,2.1402]
[1717598460949,0.8182946,172.89,172.87,47.1402]
[1717598461295,0.8182946,172.89,172.88,2.1402]
[1717598463394,0.8182946,172.89,172.88,12.8412]
[1717598463579,0.8182946,172.89,172.88,57.8412]
[1717598466873,0.8182946,172.89,172.88,77.8412]
[1717598467291,0.8182946,172.89,172.88,67.1402]
[1717598467461,0.8182946,172.89,172.76,50.8736]
[1717598467661,0.8182946,172.89,172.88,2.1402]
[1717598469369,0.8182946,172.89,172.86,2.1404]
[1717598469985,0.8182946,172.89,172.87,2.1403]
[1717598472370,0.8182946,172.89,172.86,2.1403]
[1717598473684,0.8182946,172.89,172.85,45.0]
[1717598473993,0.8182946,172.89,172.86,2.1403]
[1717598474582,0.8182946,172.89,172.87,2.1403]
[1717598474784,6.1124,172.88,172.85,45.0]
[1717598474976,6.1124,172.88,172.85,2.1405]
[1717598475173,0.34,172.87,172.85,2.1405]
[1717598475593,6.1124,172.88,172.85,2.1405]
[1717598475773,6.1124,172.88,172.86,2.1404]
[1717598475979,6.1124,172.88,172.84,45.0]
[1717598476183,6.1124,172.88,172.85,2.1405]
[1717598477980,0.34,172.87,172.85,2.1405]
[1717598478706,7.3428606,172.87,172.83,2.1407]
[1717598479092,7.3428606,172.87,172.82,45.0]
[1717598479293,22.8579,172.87,172.81,45.0]
[1717598479496,22.8579,172.87,172.75,6.4734]
[1717598479702,6.294,172.86,172.82,2.1408]
[1717598479883,0.34,172.85,172.82,2.1408]
[1717598480606,6.294,172.86,172.84,2.1406]
[1717598480779,16.4196,172.88,172.84,2.1406]
[1717598481095,16.4196,172.86,172.83,2.1407]
[1717598481302,6.5908,172.85,172.83,2.1407]
[1717598481509,6.5908,172.85,172.82,2.1408]
[1717598481805,6.5908,172.85,172.75,388.6734]
[1717598481973,6.5908,172.85,172.83,2.1408]
[1717598482376,6.5908,172.85,172.82,2.1409]
[1717598482898,6.5908,172.85,172.81,2.141]
[1717598484000,6.4645,172.84,172.76,4.2833]
[1717598484203,15.4842,172.82,172.77,2.1415]
[1717598484379,15.4842,172.82,172.72,20.0]
[1717598484380,6.666,172.81,172.76,2.1416]
[1717598484582,6.666,172.81,172.77,2.1415]
[1717598485407,6.6117,172.8,172.77,2.1415]
[1717598485707,0.34,172.79,172.77,2.1415]
[1717598486283,0.34,172.79,172.78,2.1414]
[1717598486604,28.4657,172.84,172.78,2.1413]
[1717598486802,26.325,172.84,172.72,20.0]
[1717598487117,15.3075,172.86,172.85,2.1405]
[1717598487288,7.1432946,172.89,172.83,2.1407]
[1717598487492,8.0760552,172.89,172.83,2.1407]
[1717598487798,9.2833946,172.89,172.83,2.1407]
[1717598488597,7.1432946,172.89,172.83,2.1407]
[1717598488800,10.2160552,172.89,172.83,2.1407]
[1717598489919,10.2160552,172.89,172.8,4.2822]
[1717598490096,10.2160552,172.89,172.74,6.5507]
[1717598490097,22.4802,172.88,172.82,2.1409]
[1717598492010,2.1404,172.86,172.78,4.2828]
[1717598492312,1.2727606,172.85,172.8,2.1411]
[1717598492496,1.2727606,172.85,172.81,2.141]
[1717598492904,1.2727606,172.85,172.82,2.1409]
[1717598493307,0.34,172.85,172.79,45.0]
[1717598493989,0.34,172.85,172.79,49.2824]
[1717598494190,0.34,172.86,172.81,2.1409]
[1717598494390,0.34,172.86,172.81,2.141]
[1717598494719,0.34,172.86,172.79,49.2824]
[1717598495017,0.34,172.87,172.79,49.2824]
[1717598495628,2.4803,172.87,172.79,49.2824]
[1717598496117,0.34,172.87,172.79,55.7063]
[1717598496420,0.34,172.87,172.83,2.1408]
[1717598496712,1.2727606,172.87,172.83,2.1408]
[1717598497216,0.34,172.87,172.83,2.1408]
[1717598497424,0.34,172.87,172.8,4.2823]
[1717598497594,2.4803,172.87,172.81,45.0]
[1717598498302,3.4130606,172.87,172.81,45.0]
[1717598498829,8.1774,172.86,172.81,45.0]
[1717598499120,0.34,172.85,172.81,45.0]
[1717598499600,6.4346,172.85,172.78,6.4242]
[1717598499917,6.4346,172.85,172.79,45.0]
[1717598500525,0.34,172.85,172.82,2.1408]
[1717598500826,0.34,172.85,172.8,4.2823]
[1717598500827,20.0,172.88,172.81,45.0]
[1717598501017,20.0,172.88,172.79,45.0]
[1717598501018,20.0,172.88,172.84,2.1406]
[1717598501332,20.0,172.88,172.85,2.1405]
[1717598501500,7.0406946,172.89,172.85,2.1405]
[1717598501817,9.1806946,172.89,172.85,2.1405]
[1717598502010,9.1806946,172.89,172.84,2.1406]
[1717598502196,2.1402,172.88,172.84,2.1406]
[1717598502808,0.9327606,172.87,172.83,47.1407]
[1717598503005,0.9327606,172.87,172.83,2.1407]
[1717598503306,0.17,172.86,172.83,2.1407]
[1717598503903,0.34,172.87,172.83,2.1407]
[1717598504595,0.34,172.87,172.84,2.1407]
[1717598505519,0.34,172.87,172.84,2.1406]
[1717598505724,0.34,172.88,172.84,2.1406]
[1717598506216,0.34,172.88,172.85,2.1405]
[1717598506618,0.17,172.88,172.82,55.7046]
[1717598506797,0.8182946,172.89,172.85,2.1405]
[1717598507227,2.9583946,172.89,172.85,2.1405]
[1717598507429,22.9583946,172.89,172.85,2.1405]
[1717598507607,22.9583946,172.89,172.84,47.1406]
[1717598507926,8.3007,172.88,172.84,47.1406]
[1717598508094,0.34,172.87,172.84,2.1406]
[1717598508504,0.34,172.87,172.81,6.4232]
[1717598508704,0.34,172.87,172.82,45.0]
[1717598509206,1.2727606,172.87,172.82,45.0]
[1717598510701,0.34,172.87,172.84,2.1406]
[1717598510907,1.2727606,172.87,172.84,2.1406]
[1717598512932,24.5364,172.87,172.83,2.1407]
[1717598514804,22.396,172.87,172.83,2.1407]
[1717598515226,24.5363,172.87,172.83,2.1407]
[1717598515432,24.5363,172.87,172.74,6.5507]
[1717598515433,2.1404,172.86,172.82,2.1408]
[1717598515635,0.34,172.85,172.82,2.1408]
[1717598516208,0.34,172.85,172.81,2.141]
[1717598516408,8.9073,172.85,172.8,2.1411]
[1717598516607,8.9073,172.85,172.81,2.141]
[1717598518437,6.7668,172.85,172.81,2.141]
[1717598519512,8.9073,172.85,172.81,2.141]
[1717598520539,6.7668,172.85,172.84,2.1407]
[1717598520748,0.17,172.85,172.83,2.1407]
[1717598521046,0.17,172.86,172.83,2.1407]
[1717598522015,0.8182946,172.89,172.82,8.5635]
[1717598522236,2.1402,172.88,172.84,2.1406]
[1717598522421,2.9583946,172.89,172.84,2.1406]
[1717598522625,2.1402,172.88,172.84,2.1406]
[1717598523037,2.9583946,172.89,172.84,2.1406]
[1717598523528,0.8182946,172.89,172.85,2.1405]
[1717598524540,2.9583946,172.89,172.85,2.1405]
[1717598524725,22.9583946,172.89,172.85,2.1405]
[1717598525248,0.8182946,172.89,172.85,2.1405]
[1717598525437,1.7510552,172.89,172.85,2.1405]
[1717598525634,0.8182946,172.89,172.85,2.1405]
[1717598525946,0.8182946,172.89,172.83,51.4222]
[1717598526124,0.8182946,172.89,172.85,2.1404]
[1717598527633,0.8182946,172.89,172.86,2.1404]
[1717598528557,0.8182946,172.89,172.85,2.1405]
[1717598529051,0.8182946,172.89,172.86,2.1404]
[1717598529843,0.34,172.88,172.86,2.1404]
[1717598530054,0.8182946,172.89,172.86,2.1404]
[1717598530259,0.34,172.88,172.86,2.1404]
[1717598532372,0.34,172.88,172.87,2.1403]
[1717598532668,0.8182946,172.89,172.86,2.1403]
[1717598534267,0.17,172.88,172.85,47.1405]
[1717598534570,2.4802,172.88,172.85,2.1405]
[1717598534742,2.4802,172.88,172.84,2.1406]
[1717598535444,2.1403,172.87,172.83,2.1408]
[1717598535655,0.34,172.88,172.81,4.282]
[1717598535855,0.34,172.88,172.81,14.9872]
[1717598536149,2.4802,172.88,172.84,2.1406]
[1717598536349,2.1403,172.87,172.83,2.1407]
[1717598536666,0.17,172.86,172.83,2.1407]
[1717598537143,0.34,172.87,172.83,2.1407]
[1717598537579,2.4803,172.87,172.83,2.1407]
[1717598537739,2.1405,172.86,172.82,2.1408]
[1717598538055,6.4737,172.87,172.78,8.5653]
[1717598538056,0.34,172.85,172.81,2.1409]
[1717598538255,0.34,172.84,172.82,2.1409]
[1717598538843,0.17,172.84,172.82,2.1409]
[1717598539048,0.34,172.85,172.82,2.1409]
[1717598539346,0.34,172.85,172.83,2.1407]
[1717598539547,0.34,172.86,172.82,2.1408]
[1717598540353,2.4804,172.86,172.82,2.1408]
[1717598540557,0.34,172.86,172.83,2.1408]
[1717598541171,0.17,172.86,172.81,49.282]
[1717598541343,0.17,172.86,172.83,2.1407]
[1717598541759,2.1401,172.89,172.81,45.0]
[1717598541959,0.17,172.88,172.82,14.9863]
[1717598542267,0.17,172.88,172.83,45.0]
[1717598542448,0.17,172.88,172.84,2.1406]
[1717598542640,0.17,172.88,172.85,2.1405]
[1717598543052,2.3102,172.88,172.84,2.1406]
[1717598544665,2.1401,172.89,172.85,2.1405]
[1717598544873,43.87312579,172.91,172.83,51.6339]
[1717598545048,43.87312579,172.91,172.9,2.1399]
[1717598545373,43.87312579,172.91,172.89,47.14]
[1717598546072,43.87312579,172.91,172.9,2.1399]
[1717598547261,43.87312579,172.91,172.89,2.14]
[1717598547473,43.87312579,172.91,172.9,2.1399]
[1717598548152,43.87312579,172.91,172.89,2.14]
[1717598549563,43.87312579,172.91,172.9,2.1399]
[1717598549871,43.87312579,172.91,172.89,2.14]
[1717598550862,43.87312579,172.91,172.9,2.1399]
[1717598553658,43.87312579,172.91,172.88,47.1402]
[1717598553862,43.87312579,172.91,172.88,2.1402]
[1717598555175,43.87312579,172.91,172.87,47.1402]
[1717598555481,43.87312579,172.91,172.87,2.1402]
[1717598555683,43.87312579,172.91,172.88,45.0]
[1717598555870,43.87312579,172.91,172.87,2.1402]
[1717598556184,43.87312579,172.91,172.89,2.14]
[1717598556363,43.87312579,172.91,172.88,2.1401]
[1717598560285,43.87312579,172.91,172.87,2.1402]
[1717598560472,43.87312579,172.91,172.88,2.1402]
[1717598561172,43.87312579,172.91,172.87,2.1402]
[1717598561380,43.87312579,172.91,172.88,2.1402]
[1717598561785,43.87312579,172.91,172.86,55.7021]
[1717598562097,43.87312579,172.91,172.88,2.1401]
[1717598563284,43.87312579,172.91,172.87,2.1403]
[1717598565291,43.87312579,172.91,172.88,2.1402]
[1717598567798,43.87312579,172.91,172.87,2.1402]
[1717598568195,43.87312579,172.91,172.9,2.1399]
[1717598569391,43.87312579,172.91,172.89,47.14]
[1717598569594,43.87312579,172.91,172.9,45.0]
[1717598569799,43.87312579,172.91,172.88,47.1401]
[1717598569999,43.87312579,172.91,172.89,2.14]
[1717598570181,43.87312579,172.91,172.88,2.1401]
[1717598570500,43.87312579,172.91,172.87,47.1402]
[1717598570678,43.87312579,172.91,172.88,2.1401]
[1717598579285,43.87312579,172.91,172.87,2.1402]
[1717598579484,43.87312579,172.91,172.88,2.1402]
[1717598579792,4.2802,172.89,172.79,19.0777]
[1717598580095,2.1405,172.86,172.8,2.1411]
[1717598580281,2.1404,172.87,172.81,2.141]
[1717598580687,2.3102,172.88,172.82,2.1409]
[1717598581111,2.3102,172.88,172.83,2.1408]
[1717598581495,2.1403,172.87,172.82,2.1408]
[1717598582584,4.2807,172.87,172.81,45.0]
[1717598582906,2.1406,172.85,172.8,47.1411]
[1717598583115,2.1405,172.86,172.8,2.1411]
[1717598583302,2.1405,172.86,172.81,2.141]
[1717598583481,8.5981,172.86,172.8,2.1411]
[1717598584188,2.1406,172.85,172.8,2.1411]
[1717598584388,8.5981,172.86,172.8,2.1411]
[1717598584589,2.1405,172.85,172.8,2.1411]
[1717598585119,8.2902,172.84,172.79,2.1413]
[1717598585289,8.4602,172.84,172.79,2.1413]
[1717598586712,6.3195,172.84,172.79,2.1413]
[1717598587013,8.4602,172.84,172.79,2.1413]
[1717598587202,17.7627,172.83,172.78,2.1414]
[1717598587389,6.5611,172.82,172.78,2.1414]
[1717598587586,6.5611,172.82,172.77,20.0]
[1717598587587,15.6219,172.83,172.79,2.1412]
[1717598587802,8.5317,172.85,172.8,2.1411]
[1717598588002,6.3911,172.85,172.81,2.141]
[1717598588200,2.1404,172.87,172.79,4.2826]
[1717598588518,37.3431,172.9,172.82,2.1408]
[1717598588818,2.1403,172.88,172.82,2.1408]
[1717598589014,2.1403,172.87,172.81,2.141]
[1717598589312,2.1403,172.87,172.82,2.1409]
[1717598589524,2.1403,172.87,172.8,45.0]
[1717598589525,23.0289,172.87,172.8,45.0]
[1717598589685,20.0,172.86,172.78,19.2724]
[1717598589886,2.1409,172.83,172.77,2.1415]
[1717598590291,2.1407,172.84,172.78,2.1414]
[1717598590585,2.1408,172.83,172.77,2.1415]
[1717598590821,2.1408,172.83,172.78,2.1414]
[1717598591490,4.2812,172.85,172.77,2.1415]
[1717598591689,2.1409,172.83,172.77,2.1415]
[1717598592413,2.1409,172.83,172.78,2.1414]
[1717598593205,2.1409,172.82,172.77,2.1415]
[1717598594006,8.6845,172.82,172.77,2.1415]
[1717598594709,43.4897606,172.81,172.66,10.703]
[1717598595021,43.4897606,172.81,172.73,2.1419]
[1717598595022,2.1414,172.79,172.73,2.1419]
[1717598595313,33.4324,172.81,172.73,2.142]
[1717598595488,2.1414,172.79,172.73,2.142]
[1717598595689,6.7136,172.81,172.75,2.1417]
[1717598596013,2.1409,172.83,172.78,2.1414]
[1717598596432,20.34,172.84,172.77,2.1415]
[1717598596433,2.1409,172.82,172.77,2.1415]
[1717598596718,2.141,172.81,172.76,47.1416]
[1717598596913,2.141,172.82,172.76,47.1416]
[1717598597311,2.141,172.82,172.77,2.1415]
[1717598598206,2.1408,172.83,172.77,2.1415]
[1717598598400,2.141,172.82,172.76,47.1416]
[1717598598609,2.141,172.82,172.77,45.0]
[1717598598800,2.141,172.82,172.76,2.1416]
[1717598599128,2.141,172.82,172.77,2.1415]
[1717598599494,2.141,172.81,172.76,2.1416]
[1717598599698,2.141,172.82,172.77,2.1415]
[1717598600913,2.1408,172.83,172.77,2.1415]
[1717598602222,6.6463,172.85,172.76,20.0]
[1717598602533,2.1405,172.86,172.81,2.141]
[1717598603510,2.1405,172.85,172.8,2.1411]
[1717598605851,2.1407,172.84,172.79,2.1412]
[1717598606058,0.17,172.86,172.8,2.1411]
[1717598606059,2.1406,172.85,172.8,2.1411]
[1717598607845,8.2229,172.86,172.81,2.141]
[1717598608147,0.17,172.85,172.79,45.0]
[1717598608344,2.1407,172.84,172.79,47.1412]
[1717598608543,2.1407,172.84,172.8,45.0]
[1717598608747,2.1407,172.84,172.79,2.1412]
[1717598610034,2.1407,172.84,172.8,2.1411]
[1717598610654,2.1407,172.84,172.79,2.1412]
[1717598610843,0.34,172.86,172.78,47.1414]
[1717598610844,2.1408,172.83,172.78,47.1414]
[1717598611152,2.1408,172.83,172.79,45.0]
[1717598611354,8.7928,172.83,172.78,2.1414]
[1717598611961,2.141,172.82,172.77,47.1415]
[1717598612253,2.141,172.82,172.77,2.1415]
[1717598614169,8.1874,172.81,172.76,47.1416]
[1717598614347,4.2821,172.81,172.74,2.1418]
[1717598614656,2.1412,172.8,172.74,2.1418]
[1717598614854,2.1413,172.79,172.74,2.1418]
[1717598615238,6.0112,172.79,172.74,2.1418]
[1717598615751,22.3639,172.79,172.74,2.1418]
[1717598616344,22.3639,172.79,172.75,2.1417]
[1717598617340,22.3639,172.79,172.74,47.1418]
[1717598617541,22.3639,172.79,172.75,2.1418]
[1717598617949,22.3639,172.79,172.74,47.1418]
[1717598618360,24.5052,172.79,172.74,47.1418]
[1717598618574,22.3639,172.79,172.74,47.1418]
[1717598618751,24.5052,172.79,172.74,47.1418]
[1717598620041,6.2,172.78,172.74,45.0]
[1717598620360,6.2,172.78,172.74,47.1419]
[1717598621268,6.2,172.78,172.75,2.1418]
[1717598621564,6.2,172.78,172.74,47.1418]
[1717598621737,22.2518,172.78,172.74,47.1418]
[1717598622836,0.9327606,172.77,172.74,47.1418]
[1717598623036,8.3414,172.78,172.74,45.0]
[1717598623881,6.2,172.78,172.74,45.0]
[1717598624074,6.2,172.78,172.74,47.1419]
[1717598625952,0.9327606,172.77,172.74,47.1419]
[1717598626152,6.2,172.78,172.74,47.1419]
[1717598626339,0.9327606,172.77,172.74,47.1419]
[1717598628251,0.17,172.76,172.71,0.4]
[1717598628657,0.17,172.76,172.72,2.1421]
[1717598629172,6.4253,172.76,172.72,2.1421]
[1717598629347,0.9327606,172.75,172.72,2.1421]
[1717598629756,0.9327606,172.75,172.71,47.5422]
[1717598630048,0.9327606,172.75,172.71,2.5422]
[1717598630477,0.17,172.74,172.71,0.4]
[1717598630778,23.0139,172.73,172.71,0.4]
[1717598630942,2.4821,172.72,172.71,0.4]
[1717598634364,8.7386,172.72,172.71,0.4]
[1717598636272,2.4821,172.72,172.71,0.4]
[1717598640083,8.6677,172.72,172.71,0.4]
[1717598640258,9.6004606,172.72,172.71,0.4]
[1717598640448,8.6677,172.72,172.71,0.4]
[1717598640655,2.4821,172.72,172.71,0.4]
[1717598640853,0.34,172.72,172.71,0.4]
[1717598641081,22.1419,172.74,172.71,0.4]
[1717598641289,2.312,172.73,172.71,0.4]
[1717598641783,10.7086,172.76,172.71,0.4]
[1717598641784,2.1417,172.76,172.71,2.5422]
[1717598641973,4.283,172.78,172.71,2.5422]
[1717598642278,2.1412,172.8,172.72,4.2843]
[1717598642594,2.1412,172.8,172.74,2.1418]
[1717598642762,2.1413,172.79,172.74,2.1418]
[1717598643261,2.1414,172.78,172.73,47.142]
[1717598643886,2.4813,172.79,172.74,2.1419]
[1717598645984,37.5888,172.82,172.73,45.0]
[1717598645985,2.1412,172.8,172.75,2.1418]
[1717598646152,3.0740606,172.79,172.74,2.1418]
[1717598646359,0.9327606,172.79,172.75,2.1418]
[1717598646565,3.0740606,172.79,172.74,2.1418]
[1717598646770,0.9327606,172.79,172.75,2.1418]
[1717598646969,2.1412,172.8,172.75,2.1418]
[1717598647766,2.1411,172.81,172.76,2.1416]
[1717598648295,6.498,172.86,172.74,28.5676]
[1717598648462,2.1408,172.83,172.78,2.1414]
[1717598649004,2.1409,172.82,172.77,2.1415]
[1717598649202,2.141,172.81,172.77,2.1415]
[1717598649500,2.141,172.82,172.77,2.1415]
[1717598650178,2.141,172.81,172.76,2.1416]
[1717598650598,2.141,172.82,172.77,2.1415]
[1717598651688,2.141,172.81,172.76,8.4204]
[1717598651892,2.141,172.81,172.77,45.0]
[1717598652965,2.1412,172.8,172.77,45.0]
[1717598653961,2.1411,172.81,172.77,45.0]
[1717598655683,2.1413,172.79,172.74,22.1418]
[1717598655892,2.1413,172.79,172.75,45.0]
[1717598656070,2.1413,172.79,172.74,22.1418]
[1717598656071,2.1414,172.78,172.73,8.28]
[1717598656587,2.1413,172.79,172.74,2.1419]
[1717598657087,2.1414,172.78,172.74,2.1419]
[1717598657391,2.1414,172.79,172.74,2.1419]
[1717598657573,2.1414,172.79,172.74,47.1419]